bitfinex-derivatives/quotes_BTCF0:USTF0_20250106
["timestamp","ask_amount","ask_price","bid_price","bid_amount"]
[1736147693072,0.06122275,99420.0,99419.0,0.052304]
[1736147694179,0.001,99420.0,99419.0,0.052304]
[1736147702080,0.001,99420.0,99419.0,0.117404]
[1736147705190,0.001,99420.0,99419.0,0.12754856]
[1736147705887,0.001,99420.0,99419.0,0.117404]
[1736147706089,0.001,99420.0,99419.0,0.35867738]
[1736147712692,0.001,99420.0,99419.0,0.29357738]
[1736147712883,0.050303,99422.0,99419.0,0.29257738]
[1736147713083,0.001,99420.0,99419.0,0.29357738]
[1736147713696,0.001,99420.0,99419.0,0.29257738]
[1736147713896,0.001,99420.0,99419.0,0.29357738]
[1736147714197,0.001,99420.0,99419.0,0.052304]
[1736147714695,0.051304,99420.0,99419.0,0.002]
[1736147715195,0.050304,99420.0,99419.0,0.002]
[1736147715888,0.050304,99420.0,99419.0,0.001]
[1736147716098,0.050304,99420.0,99418.0,0.3608]
[1736147716298,0.050304,99420.0,99419.0,0.001]
[1736147716596,0.06019101,99420.0,99419.0,0.001]
[1736147716985,0.06019101,99420.0,99418.0,0.3608]
[1736147717398,0.050305,99419.0,99416.0,0.050306]
[1736147717997,0.050305,99419.0,99415.0,0.24127338]
[1736147717998,0.050306,99416.0,99415.0,0.24127338]
[1736147718299,0.190306,99416.0,99415.0,0.24127338]
[1736147718595,0.190306,99416.0,99413.0,0.24127338]
[1736147718793,0.050307,99414.0,99413.0,0.24127338]
[1736147719095,0.050307,99414.0,99406.0,0.30173947]
[1736147719096,0.05031,99407.0,99406.0,0.30173947]
[1736147719890,0.41111,99407.0,99406.0,0.30173947]
[1736147720093,0.050314,99400.0,99386.0,0.47212016]
[1736147720301,0.050312,99404.0,99382.0,0.69319251]
[1736147720498,0.050312,99404.0,99383.0,0.55]
[1736147720499,0.050322,99385.0,99383.0,0.55]
[1736147720901,0.00052001,99393.0,99383.0,0.55]
[1736147721100,0.0307,99417.0,99406.0,0.050311]
[1736147721397,0.0307,99417.0,99406.0,0.411111]
[1736147721398,0.01007749,99411.0,99406.0,0.411111]
[1736147721698,0.05093091,99407.0,99406.0,0.411111]
[1736147721902,0.002,99407.0,99406.0,0.411111]
[1736147722093,0.050311,99406.0,99402.0,0.050312]
[1736147722293,0.411111,99406.0,99403.0,0.050312]
[1736147722504,0.050312,99405.0,99403.0,0.050312]
[1736147723202,0.3608,99406.0,99396.0,0.050316]
[1736147723508,0.3618,99406.0,99396.0,0.050316]
[1736147723715,0.050315,99398.0,99396.0,0.050316]
[1736147724902,0.3618,99406.0,99392.0,0.3608]
[1736147725204,0.050315,99399.0,99394.0,0.050317]
[1736147725603,0.15018902,99405.0,99392.0,0.3608]
[1736147725805,0.050315,99398.0,99392.0,0.3608]
[1736147726104,0.15118902,99405.0,99392.0,0.3608]
[1736147726294,0.050316,99396.0,99392.0,0.3608]
[1736147726696,0.050316,99396.0,99392.0,0.3618]
[1736147726902,0.050316,99396.0,99392.0,0.3628]
[1736147727306,0.050317,99393.0,99392.0,0.002]
[1736147729109,0.050314,99400.0,99393.0,0.050317]
[1736147729498,0.15018902,99403.0,99392.0,0.3628]
[1736147729701,0.15018902,99403.0,99401.0,0.050313]
[1736147730201,0.15018902,99407.0,99406.0,0.050311]
[1736147730406,0.15018902,99407.0,99406.0,0.600311]
[1736147731413,0.11999955,99413.0,99412.0,0.050308]
[1736147732700,0.12199955,99413.0,99412.0,0.050308]
[1736147732900,0.002,99413.0,99412.0,0.050308]
[1736147734398,0.48131956,99415.0,99406.0,0.55]
[1736147734601,0.001,99413.0,99412.0,0.052308]
[1736147736007,0.3608,99415.0,99412.0,0.051308]
[1736147736202,0.3608,99415.0,99412.0,0.001]
[1736147736402,0.3608,99415.0,99413.0,0.050307]
[1736147737311,0.48079955,99415.0,99413.0,0.050307]
[1736147737699,0.11999955,99415.0,99413.0,0.051307]
[1736147738312,0.11999955,99415.0,99414.0,0.55]
[1736147738812,0.11999955,99417.0,99415.0,0.050306]
[1736147740313,0.11999955,99417.0,99414.0,0.5813]
[1736147740314,0.11999955,99420.0,99419.0,0.050304]
[1736147742313,0.001,99417.0,99415.0,0.001]
[1736147742501,0.001,99417.0,99415.0,0.003]
[1736147742706,0.050306,99416.0,99415.0,0.003]
[1736147743004,0.050306,99416.0,99415.0,0.002]
[1736147743204,0.050306,99416.0,99412.0,0.55]
[1736147743403,0.050306,99416.0,99415.0,0.001]
[1736147744110,0.050306,99416.0,99415.0,0.002]
[1736147744306,0.001,99417.0,99415.0,0.002]
[1736147744507,0.12111613,99417.0,99415.0,0.052306]
[1736147744815,0.12111613,99417.0,99416.0,0.55]
[1736147745215,0.12011613,99417.0,99416.0,0.55]
[1736147745417,0.12011613,99419.0,99416.0,0.55]
[1736147745602,0.050303,99423.0,99418.0,0.3608]
[1736147745805,0.050303,99423.0,99416.0,0.55]
[1736147745806,0.050304,99419.0,99416.0,0.55]
[1736147746014,0.050305,99417.0,99415.0,0.002]
[1736147746515,0.050305,99417.0,99415.0,0.55]
[1736147746710,0.050305,99417.0,99416.0,0.002]
[1736147749119,0.051305,99417.0,99415.0,0.55]
[1736147749805,0.06155477,99417.0,99415.0,0.55]
[1736147750318,0.050312,99404.0,99403.0,0.050312]
[1736147750720,0.050312,99404.0,99403.0,0.600312]
[1736147752314,0.051312,99404.0,99403.0,0.603312]
[1736147753213,0.051312,99404.0,99403.0,0.553]
[1736147753732,0.114612,99404.0,99403.0,0.003]
[1736147754416,0.204612,99404.0,99403.0,0.003]
[1736147755811,0.114612,99404.0,99403.0,0.003]
[1736147756123,0.050323,99383.0,99382.0,0.67655208]
[1736147756308,0.050323,99383.0,99382.0,1.22655208]
[1736147757017,0.050323,99383.0,99382.0,1.04592]
[1736147757420,0.001,99383.0,99382.0,1.100243]
[1736147758221,0.002,99383.0,99382.0,1.100243]
[1736147759714,0.002,99383.0,99382.0,1.096243]
[1736147760517,0.001,99383.0,99382.0,1.096243]
[1736147762015,0.05032,99388.0,99386.0,0.050321]
[1736147763026,0.1201263,99391.0,99382.0,1.04848]
[1736147763330,0.050322,99384.0,99382.0,0.55]
[1736147764028,0.0612,99383.0,99382.0,0.55]
[1736147764522,0.0612,99383.0,99382.0,0.552]
[1736147765833,0.0612,99383.0,99382.0,0.55]
[1736147766126,0.0612,99383.0,99382.0,0.552]
[1736147768021,0.0622,99383.0,99382.0,0.002]
[1736147768430,0.05033,99368.0,99367.0,0.18063208]
[1736147768745,0.050338,99354.0,99352.0,0.050338]
[1736147768922,0.411138,99354.0,99352.0,0.050338]
[1736147769124,0.411138,99354.0,99353.0,0.55]
[1736147770319,0.411138,99354.0,99347.0,0.301172]
[1736147770630,0.050343,99343.0,99341.0,0.0319]
[1736147770831,0.411144,99342.0,99340.0,0.0324]
[1736147771034,0.411144,99342.0,99339.0,0.050344]
[1736147771527,0.411144,99342.0,99341.0,0.55]
[1736147771931,0.412144,99342.0,99341.0,0.55]
[1736147772429,0.411144,99342.0,99341.0,0.55]
[1736147772623,0.412144,99342.0,99341.0,0.55]
[1736147774325,0.413144,99342.0,99341.0,0.55]
[1736147774933,0.412144,99342.0,99341.0,0.55]
[1736147776133,0.050345,99338.0,99327.0,0.062]
[1736147777022,0.050345,99338.0,99318.0,0.050355]
[1736147777331,0.3608,99320.0,99319.0,0.55]
[1736147777534,0.3608,99320.0,99319.0,0.56574179]
[1736147778231,0.3608,99320.0,99319.0,0.55]
[1736147778824,0.3618,99320.0,99319.0,0.55]
[1736147779827,0.3628,99320.0,99319.0,0.55]
[1736147781730,0.002,99320.0,99319.0,0.55]
[1736147783134,0.3628,99320.0,99319.0,0.55]
[1736147783434,0.3628,99320.0,99319.0,0.56574179]
[1736147784225,0.3628,99320.0,99319.0,0.55]
[1736147785632,0.002,99320.0,99319.0,0.55]
[1736147785832,0.3608,99328.0,99327.0,0.050351]
[1736147786435,0.3608,99328.0,99327.0,0.600351]
[1736147787727,0.3618,99328.0,99327.0,0.600351]
[1736147789728,0.3618,99328.0,99327.0,0.602351]
[1736147794140,0.001,99328.0,99327.0,0.602351]
[1736147797240,0.051351,99328.0,99327.0,0.602351]
[1736147797430,0.051351,99328.0,99327.0,0.002]
[1736147797831,0.082251,99328.0,99327.0,0.002]
[1736147799531,0.13122159,99328.0,99327.0,4.977e-05]
[1736147800448,0.13122159,99328.0,99327.0,0.00104977]
[1736147800746,0.13122159,99328.0,99327.0,0.002]
[1736147800941,0.13022159,99328.0,99327.0,4.991e-05]
[1736147801338,0.050356,99317.0,99316.0,0.55]
[1736147801544,0.411156,99317.0,99300.0,0.1]
[1736147801759,0.050364,99302.0,99301.0,0.27093064]
[1736147802049,0.050364,99302.0,99301.0,0.82093064]
[1736147802645,0.050364,99302.0,99301.0,0.83667512]
[1736147802952,0.050364,99302.0,99301.0,0.82093064]
[1736147803344,0.17044152,99302.0,99301.0,0.5812]
[1736147803852,0.17044152,99302.0,99301.0,0.0312]
[1736147804246,0.17144152,99302.0,99301.0,0.0312]
[1736147804753,0.051364,99302.0,99301.0,0.0312]
[1736147806051,0.051364,99302.0,99300.0,0.6506]
[1736147806259,0.051364,99302.0,99300.0,0.65]
[1736147808147,0.051364,99302.0,99300.0,0.1]
[1736147808348,0.11993004,99301.0,99300.0,0.1]
[1736147809953,0.1500969,99301.0,99300.0,0.1]
[1736147810553,0.1510969,99301.0,99300.0,0.1]
[1736147812664,0.001,99301.0,99300.0,0.1]
[1736147813362,0.050364,99302.0,99300.0,0.1]
[1736147813555,0.001,99301.0,99300.0,0.1]
[1736147813962,0.17010933,99302.0,99300.0,0.1]
[1736147815358,0.11974533,99301.0,99300.0,0.1]
[1736147817164,0.050364,99302.0,99300.0,0.1]
[1736147817165,0.17010933,99302.0,99300.0,0.1]
[1736147817355,0.11974533,99302.0,99300.0,0.1]
[1736147817554,0.3608,99311.0,99310.0,0.05036]
[1736147817955,0.3608,99311.0,99310.0,0.60036]
[1736147818156,0.1500969,99315.0,99314.0,0.050358]
[1736147818461,0.1500969,99317.0,99316.0,0.050357]
[1736147819159,0.1500969,99317.0,99316.0,0.600357]
[1736147819965,0.36140001,99319.0,99318.0,0.050356]
[1736147820164,0.3608,99319.0,99318.0,0.050356]
[1736147821272,0.3608,99319.0,99317.0,0.0322]
[1736147821273,0.08983839,99322.0,99321.0,0.050354]
[1736147822565,0.08983839,99324.0,99322.0,0.050353]
[1736147822768,0.14019139,99324.0,99322.0,0.050353]
[1736147823269,0.08983839,99324.0,99322.0,0.050353]
[1736147823662,0.08983839,99323.0,99322.0,0.050353]
[1736147825268,0.09283839,99323.0,99322.0,0.600353]
[1736147825968,0.09583839,99323.0,99322.0,0.600353]
[1736147826663,0.006,99323.0,99322.0,0.600353]
[1736147828166,0.006,99323.0,99322.0,0.050353]
[1736147828760,0.050354,99321.0,99318.0,0.55]
[1736147829265,0.050354,99321.0,99318.0,0.600355]
[1736147830371,0.051354,99321.0,99318.0,0.600355]
[1736147830771,0.053354,99321.0,99319.0,0.050355]
[1736147831476,0.003,99321.0,99319.0,0.050355]
[1736147832468,0.002,99321.0,99319.0,0.050355]
[1736147832672,0.004,99321.0,99319.0,0.050355]
[1736147833065,0.002,99321.0,99319.0,0.050355]
[1736147833269,0.003,99321.0,99319.0,0.050355]
[1736147833663,0.001,99321.0,99319.0,0.050355]
[1736147833869,0.003,99321.0,99319.0,0.050355]
[1736147834179,0.003,99321.0,99320.0,0.55]
[1736147835070,0.003,99321.0,99311.0,0.3608]
[1736147835071,0.050358,99314.0,99311.0,0.3608]
[1736147835379,0.3608,99313.0,99303.0,0.24037064]
[1736147835574,0.050361,99308.0,99304.0,0.55]
[1736147835768,0.3608,99305.0,99304.0,0.55]
[1736147837275,0.3618,99305.0,99304.0,0.55]
[1736147839376,0.3618,99305.0,99303.0,0.050363]
[1736147839377,0.37203899,99305.0,99300.0,0.1]
[1736147839576,0.050364,99301.0,99300.0,0.1]
[1736147840781,0.14020239,99301.0,99300.0,0.1]
[1736147842084,0.14120239,99301.0,99300.0,0.1]
[1736147842285,0.051364,99301.0,99300.0,0.1]
[1736147842782,0.050364,99301.0,99300.0,0.1]
[1736147847271,0.050364,99301.0,99296.0,0.55]
[1736147847475,0.0321,99302.0,99296.0,0.55]
[1736147847476,0.411166,99297.0,99296.0,0.55]
[1736147848185,0.3608,99297.0,99296.0,0.55]
[1736147848388,0.411166,99297.0,99296.0,0.55]
[1736147848787,0.412166,99297.0,99296.0,0.55]
[1736147849481,0.001,99297.0,99296.0,0.55]
[1736147855980,0.08997345,99310.0,99296.0,0.55]
[1736147856290,0.08997345,99310.0,99309.0,0.050361]
[1736147857391,0.08997345,99314.0,99313.0,0.050359]
[1736147858890,0.09197345,99314.0,99313.0,0.050359]
[1736147859292,0.08997345,99314.0,99313.0,0.050359]
[1736147859496,0.08997345,99314.0,99313.0,0.051359]
[1736147859683,0.09197345,99314.0,99313.0,0.051359]
[1736147859883,0.09197345,99314.0,99313.0,0.601359]
[1736147860488,0.08997345,99314.0,99313.0,0.601359]
[1736147860692,0.09097345,99314.0,99313.0,0.601359]
[1736147860894,0.09097345,99314.0,99313.0,0.600359]
[1736147861496,0.001,99314.0,99313.0,0.600359]
[1736147865399,0.3618,99314.0,99313.0,0.600359]
[1736147865702,0.001,99314.0,99313.0,0.600359]
[1736147866004,0.3618,99314.0,99313.0,0.050359]
[1736147866191,0.001,99314.0,99313.0,0.050359]
[1736147866697,0.001,99314.0,99313.0,0.600359]
[1736147868096,0.001,99314.0,99302.0,0.0624]
[1736147868400,0.3608,99306.0,99303.0,0.050364]
[1736147868708,0.050363,99305.0,99304.0,0.55]
[1736147869004,0.050363,99305.0,99303.0,0.050364]
[1736147869388,0.050363,99305.0,99304.0,0.55]
[1736147869999,0.051363,99305.0,99304.0,0.551]
[1736147872491,0.14145216,99305.0,99304.0,0.551]
[1736147872692,0.14045216,99305.0,99304.0,0.55]
[1736147872888,0.14045216,99305.0,99304.0,0.551]
[1736147873896,0.050363,99305.0,99304.0,0.551]
[1736147874301,0.050363,99305.0,99304.0,0.55]
[1736147874604,0.05027645,99305.0,99304.0,0.551]
[1736147874904,0.05027645,99305.0,99304.0,0.55]
[1736147875203,0.001,99305.0,99304.0,0.551]
[1736147875600,0.050353,99324.0,99304.0,0.55]
[1736147875899,0.54152846,99325.0,99316.0,0.050357]
[1736147876306,0.54152846,99325.0,99316.0,0.600357]
[1736147876505,0.050354,99323.0,99316.0,0.600357]
[1736147876905,0.050354,99323.0,99316.0,0.55]
[1736147877097,0.050354,99323.0,99319.0,0.050356]
[1736147877296,0.050354,99323.0,99316.0,0.55]
[1736147877500,0.050354,99323.0,99320.0,0.050355]
[1736147877701,0.050354,99323.0,99321.0,0.050354]
[1736147878905,0.051354,99323.0,99321.0,0.050354]
[1736147879203,0.053354,99323.0,99321.0,0.050354]
[1736147879607,0.054354,99323.0,99321.0,0.050354]
[1736147885208,0.054354,99323.0,99316.0,0.55]
[1736147885209,0.004,99323.0,99316.0,0.55]
[1736147885412,0.3608,99317.0,99310.0,0.23973064]
[1736147885615,0.05036,99311.0,99310.0,0.23973064]
[1736147886617,0.050364,99303.0,99302.0,0.600964]
[1736147886801,0.050364,99303.0,99302.0,0.600364]
[1736147887908,0.050364,99303.0,99302.0,0.55]
[1736147888411,0.050368,99295.0,99294.0,0.23973064]
[1736147888709,0.411168,99295.0,99294.0,0.23973064]
[1736147888913,0.411168,99295.0,99294.0,0.78973064]
[1736147889302,0.3608,99295.0,99283.0,0.050374]
[1736147889498,0.050372,99286.0,99283.0,0.050374]
[1736147889908,0.050372,99286.0,99285.0,0.55]
[1736147891511,0.051372,99286.0,99285.0,0.551]
[1736147893408,0.14139173,99286.0,99285.0,0.551]
[1736147894919,0.051372,99286.0,99285.0,0.551]
[1736147895712,0.050372,99286.0,99285.0,0.55]
[1736147895918,0.001,99286.0,99285.0,0.551]
[1736147896325,0.001,99286.0,99285.0,0.581]
[1736147898916,0.051373,99286.0,99285.0,0.551]
[1736147901523,0.050374,99285.0,99268.0,0.23142086]
[1736147901719,0.411179,99275.0,99269.0,0.050381]
[1736147902016,0.050379,99274.0,99270.0,0.55]
[1736147903222,0.3608,99275.0,99270.0,0.55]
[1736147903223,0.05038,99272.0,99270.0,0.55]
[1736147904421,0.050384,99264.0,99262.0,0.00151107]
[1736147904727,0.3608,99263.0,99262.0,0.00151107]
[1736147906025,0.37207577,99263.0,99262.0,0.00151107]
[1736147908131,0.37307577,99263.0,99262.0,0.00151107]
[1736147909515,0.37307577,99263.0,99262.0,0.55151107]
[1736147910523,0.37307577,99263.0,99262.0,0.55]
[1736147910922,0.3628,99263.0,99262.0,0.55]
[1736147911929,0.3628,99263.0,99262.0,0.5829]
[1736147912322,0.002,99263.0,99262.0,0.5829]
[1736147912719,0.08996225,99277.0,99267.0,0.050382]
[1736147912924,0.08996225,99277.0,99268.0,0.0319]
[1736147913328,0.08996225,99277.0,99273.0,0.55]
[1736147913927,0.3618,99275.0,99273.0,0.55]
[1736147914338,0.413179,99275.0,99273.0,0.55]
[1736147914543,0.3628,99275.0,99273.0,0.55]
[1736147914831,0.3618,99275.0,99273.0,0.600379]
[1736147915629,0.001,99275.0,99273.0,0.600379]
[1736147915835,0.001,99275.0,99274.0,0.0322]
[1736147917325,0.001,99275.0,99274.0,0.0332]
[1736147921731,0.3618,99275.0,99274.0,0.0332]
[1736147922123,0.3618,99275.0,99274.0,0.001]
[1736147923135,0.37166754,99275.0,99274.0,0.001]
[1736147923429,0.40456754,99275.0,99274.0,0.001]
[1736147924330,0.41456754,99275.0,99258.0,0.18103886]
[1736147924527,0.050386,99261.0,99258.0,0.18103886]
[1736147924838,0.050386,99261.0,99259.0,0.55]
[1736147926535,0.3608,99262.0,99260.0,0.050386]
[1736147926922,0.001,99261.0,99260.0,0.050386]
[1736147927636,0.3618,99262.0,99260.0,0.050386]
[1736147927843,0.3618,99262.0,99255.0,0.18103886]
[1736147928135,0.3608,99262.0,99255.0,0.23142686]
[1736147928336,0.002,99261.0,99255.0,0.23142686]
[1736147928523,0.002,99261.0,99256.0,0.18103886]
[1736147928729,0.002,99261.0,99259.0,0.050386]
[1736147929929,0.001,99261.0,99259.0,0.050386]
[1736147930239,0.36332001,99262.0,99260.0,0.18103886]
[1736147930539,0.001,99261.0,99260.0,0.18103886]
[1736147931128,0.002,99261.0,99260.0,0.18103886]
[1736147931539,0.050387,99259.0,99258.0,0.18103886]
[1736147932831,0.050387,99259.0,99252.0,0.55]
[1736147933232,0.001,99259.0,99252.0,0.55]
[1736147933538,0.06181972,99258.0,99253.0,0.0157535]
[1736147933739,0.01143272,99257.0,99254.0,0.0157535]
[1736147934041,0.01143242,99256.0,99255.0,0.0157535]
[1736147934345,0.050388,99257.0,99255.0,0.0157535]
[1736147934543,0.01143241,99256.0,99255.0,0.0157535]
[1736147935237,0.050393,99245.0,99244.0,0.18103886]
[1736147935537,0.050393,99245.0,99241.0,0.15984398]
[1736147935538,0.050395,99242.0,99241.0,0.15984398]
[1736147935738,0.06182741,99242.0,99241.0,0.15984398]
[1736147936343,0.06182741,99242.0,99227.0,0.301172]
[1736147936344,0.19182741,99242.0,99227.0,0.301172]
[1736147936641,0.772002,99228.0,99227.0,0.301172]
[1736147936838,0.78343441,99228.0,99227.0,0.301172]
[1736147937237,0.78343441,99228.0,99227.0,0.150872]
[1736147937541,0.78343625,99228.0,99227.0,0.150872]
[1736147937732,0.78343625,99228.0,99201.0,0.0037]
[1736147937733,0.050409,99214.0,99201.0,0.0037]
[1736147938045,0.50846642,99212.0,99201.0,0.0037]
[1736147938246,0.01143425,99211.0,99201.0,0.0037]
[1736147938539,0.050411,99211.0,99201.0,0.0037]
[1736147938940,0.050412,99209.0,99201.0,0.0037]
[1736147939241,0.050413,99207.0,99201.0,0.0037]
[1736147939438,0.050413,99207.0,99201.0,0.5537]
[1736147940047,0.36136001,99212.0,99201.0,0.5537]
[1736147940239,0.001,99209.0,99201.0,0.604115]
[1736147940549,0.001,99209.0,99206.0,0.050413]
[1736147940739,0.001,99207.0,99206.0,0.050413]
[1736147941545,0.08971241,99216.0,99206.0,0.050413]
[1736147941546,0.08971241,99216.0,99206.0,0.55]
[1736147941750,0.00052001,99218.0,99211.0,0.3608]
[1736147942052,0.08956805,99226.0,99211.0,0.3608]
[1736147942231,0.08956805,99226.0,99220.0,0.3608]
[1736147942437,0.08956805,99226.0,99221.0,0.0302]
[1736147942842,0.08956805,99226.0,99221.0,0.080605]
[1736147943045,0.08956805,99226.0,99221.0,0.0302]
[1736147943341,0.3608,99228.0,99227.0,0.050402]
[1736147944148,0.3608,99228.0,99227.0,0.55]
[1736147944847,0.3618,99228.0,99227.0,0.55]
[1736147945348,0.001,99228.0,99227.0,0.55]
[1736147945643,0.050394,99245.0,99231.0,0.0504]
[1736147947142,0.050394,99245.0,99231.0,0.0514]
[1736147947143,0.051394,99245.0,99231.0,0.0514]
[1736147947545,0.001,99245.0,99240.0,0.050396]
[1736147947843,0.001,99245.0,99242.0,0.050395]
[1736147948640,0.001,99245.0,99244.0,0.050394]
[1736147949242,0.001,99245.0,99244.0,0.600394]
[1736147949852,0.3608,99262.0,99244.0,0.55]
[1736147950047,0.3608,99262.0,99251.0,0.05039]
[1736147950237,0.3608,99262.0,99250.0,0.09725642]
[1736147950443,0.3608,99262.0,99260.0,0.050385]
[1736147950751,0.3608,99262.0,99261.0,0.0325]
[1736147951349,0.3638,99262.0,99261.0,0.5825]
[1736147951551,0.3668,99262.0,99261.0,0.5825]
[1736147952556,0.006,99262.0,99261.0,0.5825]
[1736147953148,0.008,99262.0,99261.0,0.5825]
[1736147953458,0.012,99262.0,99261.0,0.5825]
[1736147953843,0.005,99262.0,99261.0,0.5825]
[1736147954057,0.001,99262.0,99261.0,0.5835]
[1736147954443,0.3608,99270.0,99265.0,0.050383]
[1736147956949,0.3618,99270.0,99265.0,0.051383]
[1736147957457,0.3608,99270.0,99265.0,0.050383]
[1736147957757,0.3618,99270.0,99265.0,0.051383]
[1736147958151,0.3608,99270.0,99265.0,0.050383]
[1736147958351,0.3618,99270.0,99265.0,0.051383]
[1736147958861,0.3618,99270.0,99268.0,0.050381]
[1736147959053,0.3618,99270.0,99269.0,0.031]
[1736147960457,0.3608,99270.0,99269.0,0.031]
[1736147960759,0.3608,99270.0,99269.0,0.032]
[1736147966855,0.27940529,99290.0,99277.0,0.050377]
[1736147967057,0.13177887,99290.0,99277.0,0.411177]
[1736147967262,0.050368,99293.0,99277.0,0.411177]
[1736147967760,0.050369,99292.0,99277.0,0.961177]
[1736147968459,0.00251188,99278.0,99277.0,0.961177]
[1736147970547,0.00251188,99278.0,99277.0,0.962177]
[1736147970952,0.00251188,99278.0,99277.0,0.601377]
[1736147980668,0.12212843,99278.0,99277.0,0.601377]
[1736147982167,0.00251188,99278.0,99277.0,0.601377]
[1736147988776,0.00251188,99278.0,99277.0,0.962177]
[1736147990273,0.12267851,99278.0,99277.0,0.962177]
[1736147991173,0.14952069,99284.0,99283.0,0.050373]
[1736147991386,0.14952069,99287.0,99286.0,0.050372]
[1736147991979,0.14952069,99287.0,99286.0,0.600372]
[1736147992972,0.14952069,99292.0,99286.0,0.55]
[1736147993171,0.14952069,99292.0,99291.0,0.050369]
[1736147994379,0.14952069,99297.0,99296.0,0.050367]
[1736147994976,0.14952069,99297.0,99296.0,0.600367]
[1736147995680,0.004,99297.0,99296.0,0.600367]
[1736147995876,0.011,99297.0,99296.0,0.600367]
[1736148001271,0.011,99297.0,99296.0,0.55]
[1736148001272,0.061366,99297.0,99296.0,0.55]
[1736148001477,0.050368,99294.0,99292.0,0.050369]
[1736148001677,0.050368,99294.0,99289.0,0.24139899]
[1736148001678,0.05037,99290.0,99289.0,0.24139899]
[1736148001881,0.05037,99290.0,99287.0,0.24139899]
[1736148002080,0.050371,99288.0,99287.0,0.24139899]
[1736148003182,0.160371,99288.0,99287.0,0.19149899]
[1736148003487,0.050382,99266.0,99264.0,0.12023236]
[1736148004190,0.050382,99266.0,99265.0,0.55]
[1736148004385,0.411182,99266.0,99265.0,0.55]
[1736148005085,0.37097799,99266.0,99259.0,0.050385]
[1736148005286,0.050384,99261.0,99259.0,0.050385]
[1736148005790,0.050384,99261.0,99260.0,0.55]
[1736148006584,0.051384,99261.0,99260.0,0.55]
[1736148007091,0.051384,99261.0,99260.0,0.551]
[1736148012889,0.001,99261.0,99260.0,0.601385]
[1736148013084,0.00151143,99281.0,99276.0,0.050377]
[1736148013488,0.00151143,99281.0,99280.0,0.050375]
[1736148013697,0.00151143,99281.0,99280.0,0.600375]
[1736148013992,0.17942483,99282.0,99280.0,0.600375]
[1736148014598,0.050363,99304.0,99290.0,0.05037]
[1736148015088,0.45805642,99310.0,99305.0,0.050362]
[1736148015089,0.14956736,99308.0,99305.0,0.050362]
[1736148015290,0.14956736,99308.0,99306.0,0.600361]
[1736148016491,0.15056736,99308.0,99306.0,0.600361]
[1736148016687,0.001,99308.0,99306.0,0.55]
[1736148016888,0.050361,99307.0,99306.0,0.55]
[1736148017192,0.001,99308.0,99291.0,0.050369]
[1736148017493,0.050367,99295.0,99292.0,0.55]
[1736148018695,0.053367,99295.0,99292.0,0.55]
[1736148018895,0.059367,99295.0,99292.0,0.551]
[1736148020482,0.059367,99295.0,99292.0,0.601368]
[1736148023289,0.009,99295.0,99294.0,0.050368]
[1736148024392,0.050364,99302.0,99294.0,0.050368]
[1736148024598,0.011,99295.0,99294.0,0.051368]
[1736148025487,0.011,99295.0,99294.0,0.050368]
[1736148025694,0.050365,99300.0,99294.0,0.051368]
[1736148026199,0.007,99295.0,99294.0,0.001]
[1736148026392,0.007,99295.0,99294.0,0.051368]
[1736148027399,0.011,99295.0,99294.0,0.051368]
[1736148027789,0.004,99295.0,99294.0,0.051368]
[1736148028194,0.004,99295.0,99294.0,0.050368]
[1736148028396,0.011,99295.0,99294.0,0.051368]
[1736148033394,0.011,99295.0,99294.0,0.601368]
[1736148035697,0.011,99295.0,99294.0,0.051368]
[1736148039899,0.011,99295.0,99294.0,0.601368]
[1736148047310,0.008,99295.0,99294.0,0.601368]
[1736148048199,0.001,99295.0,99294.0,0.600368]
[1736148048707,0.001,99295.0,99294.0,0.55]
[1736148049511,0.001,99295.0,99291.0,0.30019057]
[1736148049711,0.001,99295.0,99285.0,0.30019057]
[1736148049915,0.411169,99291.0,99286.0,0.55]
[1736148051812,0.05037,99290.0,99286.0,0.55]
[1736148052203,0.05037,99290.0,99286.0,0.552]
[1736148052399,0.05037,99289.0,99286.0,0.552]
[1736148052612,0.050371,99287.0,99286.0,0.552]
[1736148054913,0.37133328,99291.0,99289.0,0.05037]
[1736148054914,0.36136001,99291.0,99289.0,0.05037]
[1736148055113,0.3608,99291.0,99289.0,0.05037]
[1736148056206,0.3608,99291.0,99289.0,0.05137]
[1736148056816,0.41117,99291.0,99289.0,0.05137]
[1736148057113,0.41117,99291.0,99289.0,0.001]
[1736148058912,0.54117,99291.0,99289.0,0.001]
[1736148060518,0.84117,99291.0,99279.0,0.18111682]
[1736148060819,0.050375,99280.0,99279.0,0.18111682]
[1736148061115,0.050376,99277.0,99276.0,0.18111682]
[1736148061306,0.411176,99277.0,99276.0,0.18111682]
[1736148062024,0.531176,99277.0,99276.0,0.18111682]
[1736148062217,0.050379,99272.0,99271.0,0.55]
[1736148063620,0.06051712,99272.0,99271.0,0.55]
[1736148064214,0.06051712,99272.0,99265.0,0.050382]
[1736148064623,0.15143411,99272.0,99271.0,0.008]
[1736148065919,0.06151712,99272.0,99270.0,0.01051097]
[1736148066319,0.06051712,99272.0,99270.0,0.00151097]
[1736148066520,0.06151712,99272.0,99271.0,0.008]
[1736148068122,0.06151712,99272.0,99270.0,0.01051097]
[1736148068725,0.06151712,99272.0,99271.0,0.008]